bitfinex/quotes_BTCUSD_20250614
["timestamp","ask_amount","ask_price","bid_price","bid_amount"]
[1749904291693,7.94825593,105040.0,105030.0,0.14987414]
[1749904291893,7.75301593,105040.0,105030.0,0.08373647]
[1749904292098,7.9482556,105040.0,105030.0,0.06613767]
[1749904292342,7.94825558,105040.0,105030.0,0.01849]
[1749904292546,0.67561063,105020.0,105010.0,0.0366]
[1749904292882,1.56348929,105020.0,105010.0,0.04557167]
[1749904293088,1.56348928,105020.0,105010.0,0.04557167]
[1749904293319,1.59210528,105020.0,105010.0,0.04557167]
[1749904293532,1.59210528,105020.0,105010.0,0.03664771]
[1749904293745,6.64210526,105020.0,105010.0,0.03664771]
[1749904293953,6.64210504,105020.0,105010.0,0.03664771]
[1749904294161,6.64707918,105020.0,105010.0,0.03664771]
[1749904294366,6.64707904,105020.0,105010.0,0.03664771]
[1749904294586,6.64139517,105020.0,105010.0,0.03664771]
[1749904294803,6.64807904,105020.0,105010.0,0.03664771]
[1749904295008,6.64807812,105020.0,105010.0,0.03664771]
[1749904295218,6.64139517,105020.0,105010.0,0.03664771]
[1749904295422,6.64807809,105020.0,105010.0,0.03664771]
[1749904295628,6.64807814,105020.0,105010.0,0.03664771]
[1749904296050,6.62524621,105020.0,105010.0,0.03664771]
[1749904296263,6.64805748,105020.0,105010.0,0.03664771]
[1749904296471,6.64137451,105020.0,105010.0,0.03664771]
[1749904296677,6.64805748,105020.0,105010.0,0.03664771]
[1749904297528,6.64137451,105020.0,105010.0,0.03664771]
[1749904297737,6.64805748,105020.0,105010.0,0.03664771]
[1749904298795,6.64804824,105020.0,105010.0,0.03664771]
[1749904299005,6.64137451,105020.0,105010.0,0.03664771]
[1749904299218,6.64804824,105020.0,105010.0,0.03664771]
[1749904299638,6.64804822,105020.0,105010.0,0.03664771]
[1749904300055,6.64137451,105020.0,105010.0,0.03664771]
[1749904300265,6.64804823,105020.0,105010.0,0.03664771]
[1749904300684,6.6480499,105020.0,105010.0,0.03664771]
[1749904301324,6.6881299,105020.0,105010.0,0.03664771]
[1749904302184,6.49293298,105020.0,105010.0,0.03664771]
[1749904302388,6.68145451,105020.0,105010.0,0.03664771]
[1749904302594,6.71664708,105020.0,105010.0,0.03664771]
[1749904303013,6.7099686,105020.0,105010.0,0.03664771]
[1749904303239,6.71664708,105020.0,105010.0,0.03664771]
[1749904303457,6.71664709,105020.0,105010.0,0.03664771]
[1749904303669,6.71664708,105020.0,105010.0,0.03664771]
[1749904303881,6.7099686,105020.0,105010.0,0.03664771]
[1749904304098,6.71664708,105020.0,105010.0,0.03664771]
[1749904304315,6.16088653,105020.0,105010.0,0.03664771]
[1749904304555,6.45020667,105020.0,105010.0,0.03664771]
[1749904304770,6.64532666,105020.0,105010.0,0.03664771]
[1749904305407,6.38107778,105020.0,105010.0,0.03664771]
[1749904305652,6.40012113,105020.0,105010.0,0.03664771]
[1749904306091,6.39344275,105020.0,105010.0,0.03664771]
[1749904306515,6.49627036,105020.0,105010.0,0.03664771]
[1749904306726,6.49627032,105020.0,105010.0,0.03664771]
[1749904306911,6.49627035,105020.0,105010.0,0.03664771]
[1749904307149,6.48959197,105020.0,105010.0,0.03664771]
[1749904307359,6.49627031,105020.0,105010.0,0.03664771]
[1749904307770,5.94050986,105020.0,105010.0,0.03664771]
[1749904307977,6.49627031,105020.0,105010.0,0.03664771]
[1749904308633,6.49626944,105020.0,105010.0,0.03664771]
[1749904309051,6.49626941,105020.0,105010.0,0.03664771]
[1749904309726,6.48959197,105020.0,105010.0,0.03664771]
[1749904309937,6.49626941,105020.0,105010.0,0.03664771]
[1749904310147,5.94050896,105020.0,105010.0,0.03664771]
[1749904310355,6.48959197,105020.0,105010.0,0.03664771]
[1749904310559,6.49626931,105020.0,105010.0,0.03664771]
[1749904310774,6.48959197,105020.0,105010.0,0.03664771]
[1749904310990,6.49626919,105020.0,105010.0,0.03664771]
[1749904311190,6.48959197,105020.0,105010.0,0.03664771]
[1749904311397,6.49626925,105020.0,105010.0,0.03664771]
[1749904312867,6.48959197,105020.0,105010.0,0.03664771]
[1749904313076,6.49626925,105020.0,105010.0,0.03664771]
[1749904313308,6.48959197,105020.0,105010.0,0.03664771]
[1749904313515,6.49627157,105020.0,105010.0,0.03664771]
[1749904313873,6.49628002,105020.0,105010.0,0.03664771]
[1749904314070,6.49628003,105020.0,105010.0,0.03664771]
[1749904314611,6.49628007,105020.0,105010.0,0.03664771]
[1749904314773,6.48959197,105020.0,105010.0,0.03664771]
[1749904314973,6.49628007,105020.0,105010.0,0.03664771]
[1749904315157,6.48959197,105020.0,105010.0,0.03664771]
[1749904315372,6.52479415,105020.0,105010.0,0.03664771]
[1749904315747,6.51810606,105020.0,105010.0,0.03664771]
[1749904315949,6.5247941,105020.0,105010.0,0.03664771]
[1749904316102,6.51810606,105020.0,105010.0,0.03664771]
[1749904316424,6.52479409,105020.0,105010.0,0.03664771]
[1749904317062,6.51810606,105020.0,105010.0,0.03664771]
[1749904317295,6.52479409,105020.0,105010.0,0.03664771]
[1749904317502,6.51810606,105020.0,105010.0,0.03664771]
[1749904317907,6.52479408,105020.0,105010.0,0.03664771]
[1749904318084,6.51313197,105020.0,105010.0,0.03664771]
[1749904318223,6.51981999,105020.0,105010.0,0.03664771]
[1749904318429,6.51981976,105020.0,105010.0,0.03664771]
[1749904318627,6.51981973,105020.0,105010.0,0.03664771]
[1749904318850,6.51313197,105020.0,105010.0,0.03664771]
[1749904319051,6.51981862,105020.0,105010.0,0.03664771]
[1749904319251,6.51981829,105020.0,105010.0,0.03664771]
[1749904319475,6.51981804,105020.0,105010.0,0.03664771]
[1749904319724,6.51981801,105020.0,105010.0,0.03664771]
[1749904320146,6.51981786,105020.0,105010.0,0.03664771]
[1749904320359,6.51981784,105020.0,105010.0,0.03664771]
[1749904320492,5.67278814,105020.0,105010.0,0.03664771]
[1749904320705,1.1500345,105020.0,105010.0,0.03664771]
[1749904320924,0.48349144,105020.0,105010.0,0.59240816]
[1749904321160,0.8282296,105020.0,105010.0,0.59240816]
[1749904322997,0.8282296,105020.0,105010.0,0.03664771]
[1749904323200,0.8282296,105020.0,105010.0,0.59240816]
[1749904323570,0.80541833,105020.0,105010.0,0.59240816]
[1749904324177,0.80541833,105020.0,105010.0,0.03664771]
[1749904324439,0.46541833,105020.0,105010.0,0.59240816]
[1749904325205,0.22537833,105020.0,105010.0,0.78286621]
[1749904325422,0.03162933,105020.0,105010.0,0.33777134]
[1749904325629,0.08119114,105020.0,105010.0,0.90305405]
[1749904325838,0.09071304,105020.0,105010.0,0.82095635]
[1749904326244,0.28115295,105020.0,105010.0,0.80191174]
[1749904326454,0.28115295,105020.0,105010.0,0.81143427]
[1749904326660,0.28115295,105020.0,105010.0,0.82095671]
[1749904327319,0.09071304,105020.0,105010.0,0.83047906]
[1749904327536,0.07166924,105020.0,105010.0,1.08166764]
[1749904327738,0.07166924,105020.0,105010.0,0.98551842]
[1749904327954,0.08119078,105020.0,105010.0,0.98551842]
[1749904328574,0.06214779,105020.0,105010.0,0.98551842]
[1749904328772,0.08119087,105020.0,105010.0,0.98551842]
[1749904329767,0.01158652,105020.0,105010.0,1.08176018]
[1749904329967,0.02110788,105020.0,105010.0,1.08176018]
[1749904330169,0.03062942,105020.0,105010.0,1.08576018]
[1749904330296,0.03062942,105020.0,105010.0,1.1819094]
[1749904330936,0.03062942,105020.0,105010.0,1.1849094]
[1749904331161,0.03062942,105020.0,105010.0,1.08876018]
[1749904331780,0.03062933,105020.0,105010.0,1.08876018]
[1749904332847,0.04015096,105020.0,105010.0,1.08876018]
[1749904334742,0.01158652,105020.0,105010.0,1.08876018]
[1749904344464,0.01158652,105020.0,105010.0,0.53299973]
[1749904344682,0.01158652,105020.0,105010.0,1.08876018]
[1749904345517,0.01158652,105020.0,105010.0,1.1849094]
[1749904349513,0.27448,105040.0,105030.0,0.26858394]
[1749904349762,0.27448,105040.0,105030.0,1.53510484]
[1749904350015,0.27448,105040.0,105030.0,1.6313466]
[1749904350479,0.04004,105050.0,105040.0,0.2685631]
[1749904350685,0.04955855,105050.0,105040.0,0.82432355]
[1749904350934,0.06091213,105050.0,105040.0,0.82432355]
[1749904351169,0.07043095,105050.0,105040.0,0.82432355]
[1749904351363,0.07043095,105050.0,105040.0,0.92056531]
[1749904351578,0.07994995,105050.0,105040.0,0.92056531]
[1749904351717,0.07994995,105050.0,105040.0,0.92156531]
[1749904352187,0.07994995,105050.0,105040.0,0.52240486]
[1749904352405,0.07994995,105050.0,105040.0,1.07816531]
[1749904354309,0.07043095,105050.0,105040.0,1.07816531]
[1749904354510,0.06091213,105050.0,105040.0,1.07816531]
[1749904354716,0.06091204,105050.0,105040.0,1.07816531]
[1749904355138,0.07043068,105050.0,105040.0,1.07816531]
[1749904355343,0.06091204,105050.0,105040.0,1.07816531]
[1749904358075,0.07994941,105050.0,105040.0,0.35628532]
[1749904358313,0.07995004,105050.0,105040.0,0.26956374]
[1749904358558,0.27985484,105050.0,105040.0,0.40692374]
[1749904358875,0.08946931,105050.0,105040.0,0.9817241]
[1749904359061,0.07043095,105050.0,105040.0,1.00076345]
[1749904359308,0.07994995,105050.0,105040.0,1.0007629]
[1749904359527,0.08946877,105050.0,105040.0,1.0007629]
[1749904359736,0.08946877,105050.0,105040.0,0.99124327]
[1749904360171,0.08946868,105050.0,105040.0,0.99124327]
[1749904361632,0.09898777,105050.0,105040.0,0.99124327]
[1749904362320,0.0989884,105050.0,105040.0,0.99124336]
[1749904363306,0.0989884,105050.0,105040.0,1.0007629]
[1749904363804,0.08946922,105050.0,105040.0,1.0007629]
[1749904364288,0.08946922,105050.0,105040.0,0.44500245]
[1749904364505,0.08946922,105050.0,105040.0,0.42596338]
[1749904364710,0.27985529,105050.0,105040.0,0.99124355]
[1749904365482,0.27033638,105050.0,105040.0,0.98172383]
[1749904365686,0.27033638,105050.0,105040.0,0.26956338]
[1749904365920,0.27033638,105050.0,105040.0,0.001]
[1749904365921,0.90320796,105050.0,105040.0,0.001]
[1749904366150,0.95310796,105050.0,105040.0,0.001]
[1749904368901,0.21125829,105050.0,105040.0,0.001]
[1749904369127,0.25197829,105050.0,105040.0,0.60814029]
[1749904369370,0.25197829,105050.0,105040.0,0.05]
[1749904369609,0.24245911,105050.0,105040.0,0.05237979]
[1749904370072,0.20173911,105050.0,105040.0,0.05237979]
[1749904370321,0.24245911,105050.0,105040.0,0.05]
[1749904370792,0.24245911,105050.0,105040.0,0.05237979]
[1749904371496,0.24245911,105050.0,105040.0,0.05]
[1749904374831,0.20173911,105050.0,105040.0,0.60814024]
[1749904375057,0.21125829,105050.0,105040.0,0.60576045]
[1749904375273,0.25197829,105050.0,105040.0,0.60576045]
[1749904376570,0.25197829,105050.0,105040.0,0.7961641]
[1749904376571,0.20173911,105050.0,105040.0,0.7961641]
[1749904376788,0.21125775,105050.0,105040.0,0.91144604]
[1749904376995,0.23981466,105050.0,105040.0,0.70200221]
[1749904377226,0.23981466,105050.0,105040.0,0.63985721]
[1749904377699,0.2207772,105050.0,105040.0,0.63985721]
[1749904377945,0.2207772,105050.0,105040.0,0.14624176]
[1749904380123,0.21125829,105050.0,105040.0,0.14624176]
[1749904381445,0.70487374,105050.0,105040.0,0.0248]
[1749904381703,0.30485441,105050.0,105040.0,0.001]
[1749904381886,0.32915441,105050.0,105040.0,0.001]
[1749904382106,0.35485441,105050.0,105040.0,0.001]
[1749904382325,0.26125829,105050.0,105040.0,0.001]
[1749904385541,0.21125829,105050.0,105040.0,0.001]
[1749904386153,0.23475829,105050.0,105040.0,0.001]
[1749904386571,0.26005829,105050.0,105040.0,0.001]
[1749904387594,0.75367374,105050.0,105040.0,0.001]
[1749904387819,0.26005829,105050.0,105040.0,0.001]
[1749904388037,0.84982296,105050.0,105040.0,0.001]
[1749904388491,0.87842696,105050.0,105040.0,0.001]
[1749904389694,0.78227774,105050.0,105040.0,0.001]
[1749904396034,0.93823774,105050.0,105040.0,0.001]
[1749904396864,1.3944795,105050.0,105040.0,0.001]
[1749904397515,0.20946331,105030.0,105020.0,0.0476]
[1749904397722,0.24998331,105030.0,105020.0,0.0476]
[1749904398771,0.24998331,105030.0,105020.0,0.0255]
[1749904399136,0.24998331,105030.0,105020.0,0.0275]
[1749904399735,0.24998331,105030.0,105020.0,0.0517]
[1749904402604,0.04052,105030.0,105020.0,0.0517]
[1749904402845,0.24998331,105030.0,105020.0,0.0517]
[1749904404163,0.24998331,105030.0,105020.0,0.1437309]
[1749904404478,0.24998331,105030.0,105020.0,0.0517]
[1749904409639,0.26945567,105030.0,105020.0,0.0517]
[1749904421170,0.82513554,105030.0,105020.0,0.0517]
[1749904422390,0.26945567,105030.0,105020.0,0.0517]
[1749904426174,0.26945567,105030.0,105020.0,0.004]
[1749904426589,0.82513554,105030.0,105020.0,0.004]
[1749904427049,0.82513554,105030.0,105020.0,0.0543]
[1749904430802,0.82501554,105030.0,105020.0,0.0543]
[1749904431379,0.26933567,105030.0,105020.0,0.0543]
[1749904440597,0.26933567,105030.0,105020.0,0.70612909]
[1749904441378,0.26933567,105030.0,105020.0,0.15044922]
[1749904442032,0.26933567,105030.0,105020.0,0.0543]
[1749904452171,0.24986331,105030.0,105020.0,0.0543]
[1749904452618,0.24986331,105030.0,105020.0,0.24473991]
[1749904452848,0.24986331,105030.0,105020.0,0.2542619]
[1749904453085,0.01904153,105030.0,105020.0,0.82898512]
[1749904453316,0.05944099,105030.0,105020.0,0.9346557]
[1749904453548,0.25936301,105040.0,105030.0,0.25946349]
[1749904453772,0.26888319,105040.0,105030.0,0.82466399]
[1749904453956,0.26888319,105040.0,105030.0,0.60567987]
[1749904454223,0.24984383,105040.0,105030.0,0.80562273]
[1749904454447,0.8055237,105040.0,105030.0,0.05]
[1749904454885,0.8055237,105040.0,105030.0,0.051]
[1749904457141,0.87954008,105040.0,105030.0,0.001]
[1749904457372,0.88622838,105040.0,105030.0,0.001]
[1749904457588,0.88622844,105040.0,105030.0,0.001]
[1749904457816,0.87954008,105040.0,105030.0,0.001]
[1749904458028,0.88622841,105040.0,105030.0,0.001]
[1749904458248,0.87954008,105040.0,105030.0,0.001]
[1749904458470,0.88622842,105040.0,105030.0,0.001]
[1749904458888,0.88622843,105040.0,105030.0,0.001]
[1749904459542,0.87954008,105040.0,105030.0,0.001]
[1749904459759,0.86072845,105040.0,105030.0,0.001]
[1749904459971,0.85404008,105040.0,105030.0,0.001]
[1749904460174,0.86072846,105040.0,105030.0,0.001]
[1749904460591,0.85404008,105040.0,105030.0,0.001]
[1749904460800,0.86072806,105040.0,105030.0,0.001]
[1749904461017,0.86072803,105040.0,105030.0,0.001]
[1749904461431,0.86072756,105040.0,105030.0,0.001]
[1749904461904,0.83502764,105040.0,105030.0,0.001]
[1749904462126,0.83502767,105040.0,105030.0,0.001]
[1749904462555,0.82834008,105040.0,105030.0,0.001]
[1749904463192,0.83502768,105040.0,105030.0,0.001]
[1749904463405,0.82834008,105040.0,105030.0,0.001]
[1749904468466,0.9244893,105040.0,105030.0,0.001]
[1749904471028,1.3347123,105040.0,105030.0,0.001]
[1749904472999,1.23856308,105040.0,105030.0,0.001]
[1749904473187,1.23856308,105040.0,105030.0,0.0503]
[1749904475191,0.68288321,105040.0,105030.0,0.0503]
[1749904475391,1.23856308,105040.0,105030.0,0.0503]
[1749904479637,0.68288321,105040.0,105030.0,0.0503]
[1749904479842,1.23856308,105040.0,105030.0,0.0503]
[1749904484259,1.19816308,105040.0,105030.0,0.25024286]
[1749904484463,0.43303938,105040.0,105030.0,0.82496444]
[1749904484671,0.410223,105040.0,105030.0,1.64156652]
[1749904484886,0.410223,105040.0,105030.0,1.65686671]
[1749904485521,0.410223,105040.0,105030.0,1.10118684]
[1749904485722,0.410223,105040.0,105030.0,1.19733606]
[1749904488658,0.410223,105040.0,105030.0,1.19633606]
[1749904489068,0.410223,105040.0,105030.0,1.20033606]
[1749904489711,0.410223,105040.0,105030.0,1.20433606]
[1749904497740,0.41974236,105040.0,105030.0,1.20433606]
[1749904499071,0.41974236,105040.0,105030.0,0.633356]
[1749904499298,0.44830162,105040.0,105030.0,1.09284665]
[1749904499566,0.43878162,105040.0,105030.0,1.09284665]
[1749904499783,0.44830153,105040.0,105030.0,1.09284665]
[1749904499994,0.43878162,105040.0,105030.0,1.09284665]
[1749904501073,0.43878162,105040.0,105030.0,1.10819286]
[1749904501290,0.44830144,105040.0,105030.0,1.10819286]
[1749904502158,0.43878162,105040.0,105030.0,1.10819286]
[1749904502365,0.43878162,105040.0,105030.0,1.09284665]
[1749904504563,0.4292619,105040.0,105030.0,1.09284665]
[1749904505635,0.43878162,105040.0,105030.0,1.09284665]
[1749904505846,0.4292619,105040.0,105030.0,1.09284665]
[1749904508251,0.4292619,105040.0,105030.0,1.18899587]
[1749904509748,0.4292619,105040.0,105030.0,1.09284665]
[1749904510201,0.43878153,105040.0,105030.0,1.09284665]
[1749904510414,0.4292619,105040.0,105030.0,1.09284665]
[1749904513917,0.41974236,105040.0,105030.0,1.09284665]
[1749904514243,0.4292619,105040.0,105030.0,1.09284665]
[1749904514468,0.41974236,105040.0,105030.0,1.09284665]
[1749904515829,0.410223,105040.0,105030.0,1.09284665]
[1749904516944,0.410223,105040.0,105030.0,0.38204678]
[1749904517166,0.410223,105040.0,105030.0,1.09280665]
[1749904517823,0.41974245,105040.0,105030.0,1.09280665]
[1749904519503,0.43878171,105040.0,105030.0,1.09280665]
[1749904520341,0.42926199,105040.0,105030.0,1.09280665]
[1749904520815,0.43878171,105040.0,105030.0,1.09280665]
[1749904522168,0.42926199,105040.0,105030.0,1.09280665]
[1749904522926,0.41974245,105040.0,105030.0,1.09280665]
[1749904524452,0.41974245,105040.0,105030.0,1.12786756]
[1749904525412,0.410223,105040.0,105030.0,1.12786756]
[1749904531784,0.20008806,105040.0,105030.0,1.12786756]
[1749904550125,0.20008806,105040.0,105030.0,1.68354743]
[1749904550746,0.20008806,105040.0,105030.0,1.12786756]
[1749904556944,0.2096076,105040.0,105030.0,0.97278756]
[1749904557152,0.2096076,105040.0,105030.0,1.06696665]
[1749904557359,0.22864751,105040.0,105030.0,1.06696665]
[1749904557571,0.21912732,105040.0,105030.0,1.06696665]
[1749904558039,0.2096076,105040.0,105030.0,1.06696665]
[1749904558237,0.21912723,105040.0,105030.0,1.04346665]
[1749904558449,0.2096076,105040.0,105030.0,1.04346665]
[1749904558670,0.21912732,105040.0,105030.0,1.04346665]
[1749904559268,0.2096076,105040.0,105030.0,1.04346665]
[1749904559685,0.21912732,105040.0,105030.0,1.04346665]
[1749904560728,0.2096076,105040.0,105030.0,0.48778678]
[1749904560938,0.2096076,105040.0,105030.0,1.04346665]
[1749904561357,0.21912742,105040.0,105030.0,1.06766665]
[1749904561576,0.2096076,105040.0,105030.0,1.04346665]
[1749904563950,0.20960751,105040.0,105030.0,1.09066665]
[1749904565505,0.20008806,105040.0,105030.0,1.09066665]
[1749904565716,0.20008806,105040.0,105030.0,1.18681587]
[1749904565921,0.20960751,105040.0,105030.0,1.18681587]
[1749904566401,0.20008806,105040.0,105030.0,1.18681587]
[1749904571937,0.20008806,105040.0,105030.0,1.74249574]
[1749904576198,0.20008806,105040.0,105030.0,1.18681587]
[1749904577654,0.20008806,105040.0,105030.0,1.74249574]
[1749904578259,0.20008806,105040.0,105030.0,1.18681587]
[1749904579149,0.20008806,105040.0,105030.0,1.74249574]
[1749904579406,0.20008806,105040.0,105030.0,1.18681587]
[1749904579618,0.20008806,105040.0,105030.0,2.08249574]
[1749904579835,0.20008806,105040.0,105030.0,2.13957427]
[1749904583806,0.20008806,105040.0,105030.0,2.20411512]
[1749904591935,0.20008806,105040.0,105030.0,2.23270812]
[1749904592153,0.20008806,105040.0,105030.0,2.17562959]
[1749904595389,0.20008806,105040.0,105030.0,2.2517343]
[1749904598820,0.20008806,105040.0,105030.0,2.0966943]
[1749904599027,0.20008806,105040.0,105030.0,2.2516543]
[1749904601696,0.20008806,105040.0,105030.0,2.3016543]
[1749904602898,0.20008806,105040.0,105030.0,2.2976543]
[1749904603348,0.20008806,105040.0,105030.0,2.3016543]
[1749904603572,0.20008806,105040.0,105030.0,2.3116543]
[1749904603789,0.20008806,105040.0,105030.0,2.1566943]
[1749904604008,0.20008806,105040.0,105030.0,2.3116543]
[1749904605140,0.20008806,105040.0,105030.0,2.1566943]
[1749904605371,0.20008806,105040.0,105030.0,2.3116543]
[1749904606248,0.20008806,105040.0,105030.0,2.2616543]
[1749904606381,0.20008806,105040.0,105030.0,2.1566943]
[1749904606587,0.20008806,105040.0,105030.0,2.3116143]
[1749904608143,0.20008806,105040.0,105030.0,2.3306843]
[1749904608370,0.20008806,105040.0,105030.0,2.1757643]
[1749904608491,0.20008806,105040.0,105030.0,2.3306843]
[1749904612742,0.20008806,105040.0,105030.0,2.25457959]
[1749904614596,0.20008806,105040.0,105030.0,2.20457959]
[1749904614826,0.20008806,105040.0,105030.0,2.25457959]
[1749904618009,0.20008806,105040.0,105030.0,2.20457959]
[1749904618245,0.20008806,105040.0,105030.0,2.34971048]
[1749904626970,0.20008806,105040.0,105030.0,2.45001048]
[1749904627176,0.20008806,105040.0,105030.0,2.34971048]
[1749904627343,0.24588806,105070.0,105060.0,0.2189214]
[1749904627567,0.24588806,105070.0,105060.0,1.12563546]
[1749904629204,0.24588806,105070.0,105060.0,1.12863546]
[1749904629504,0.24588806,105070.0,105060.0,1.13263546]
[1749904630896,0.22338806,105070.0,105060.0,1.13263546]
[1749904631140,0.22338806,105070.0,105060.0,1.68831533]
[1749904631483,0.22338806,105070.0,105060.0,1.16090431]
[1749904631666,0.22338806,105070.0,105060.0,1.13263546]
[1749904638151,0.20008806,105070.0,105060.0,1.13263546]
[1749904644232,0.20008806,105070.0,105060.0,1.47263546]
[1749904644444,0.20008806,105070.0,105060.0,2.08785618]
[1749904645507,0.20008806,105070.0,105060.0,2.05636259]
[1749904646354,0.20008806,105070.0,105060.0,2.13446871]
[1749904646557,0.20008806,105070.0,105060.0,2.06636259]
[1749904648285,0.20008806,105070.0,105060.0,2.14246871]
[1749904648710,0.20008806,105070.0,105060.0,2.06636259]
[1749904650675,0.20008806,105070.0,105060.0,2.09445848]
[1749904651367,0.20008806,105070.0,105060.0,1.33889861]
[1749904651591,0.20008806,105070.0,105060.0,1.49373861]
[1749904651878,0.20008806,105070.0,105060.0,1.33889861]
[1749904652089,0.24508806,105070.0,105060.0,1.40777892]
[1749904652499,0.24508806,105070.0,105060.0,1.46482386]
[1749904652723,0.24508806,105070.0,105060.0,1.40777892]
[1749904652934,0.24508806,105070.0,105060.0,1.46482827]
[1749904653154,0.24508806,105070.0,105060.0,1.49940944]
[1749904656520,0.24508806,105070.0,105060.0,1.46482827]
[1749904656816,0.20008806,105070.0,105060.0,1.46482827]
[1749904658114,0.0314546,105070.0,105060.0,1.40777892]
[1749904673925,0.0314546,105070.0,105060.0,1.52618504]
[1749904675482,0.0314546,105070.0,105060.0,1.37134504]
[1749904675684,0.0314546,105070.0,105060.0,1.62225426]
[1749904683753,0.0314546,105070.0,105060.0,1.52610504]
[1749904691733,0.0314546,105070.0,105060.0,0.97042517]
[1749904691933,0.0314546,105070.0,105060.0,1.52610504]
[1749904698009,0.0314546,105070.0,105060.0,1.37134504]
[1749904698275,0.0314546,105070.0,105060.0,1.52606504]
[1749904699625,0.0314546,105070.0,105060.0,1.62221426]
[1749904699795,0.0314546,105070.0,105060.0,0.8414185]
[1749904700005,0.0314546,105070.0,105060.0,1.55181837]
[1749904700326,0.0314546,105070.0,105060.0,1.57521837]
[1749904700743,0.0314546,105070.0,105060.0,1.59861837]
[1749904711227,0.0314546,105070.0,105060.0,1.50246915]
[1749904713207,0.53544938,105090.0,105080.0,0.21887974]
[1749904713409,0.535497,105090.0,105080.0,0.4698015]
[1749904713602,0.495617,105090.0,105080.0,0.4698015]
[1749904714280,0.495617,105090.0,105080.0,0.4738015]
[1749904714483,0.01907755,105090.0,105080.0,0.4738015]
[1749904714692,0.58427271,105090.0,105080.0,0.4768015]
[1749904716366,0.62487271,105090.0,105080.0,0.4768015]
[1749904717323,0.66475271,105090.0,105080.0,0.4768015]
[1749904719599,0.86458133,105090.0,105080.0,0.30308939]
[1749904719824,1.49600443,105090.0,105080.0,0.16168]
[1749904720247,0.94032456,105090.0,105080.0,0.16168]
[1749904722045,0.8455514,105090.0,105080.0,0.37104418]
[1749904722247,0.8455514,105090.0,105080.0,0.36152772]
[1749904722451,0.8455514,105090.0,105080.0,0.16168]
[1749904724562,0.8455514,105090.0,105080.0,0.36152772]
[1749904724777,0.8455514,105090.0,105080.0,0.37104418]
[1749904728039,0.8455514,105090.0,105080.0,0.38056055]
[1749904728936,0.8455514,105090.0,105080.0,0.39007683]
[1749904735800,0.93218533,105090.0,105080.0,0.36152772]
[1749904736007,0.93218533,105090.0,105080.0,0.37104409]
[1749904736152,0.83603611,105090.0,105080.0,0.37104409]
[1749904736799,0.83603611,105090.0,105080.0,0.38056037]
[1749904741114,0.81713611,105090.0,105080.0,0.38056037]
[1749904741313,0.81713611,105090.0,105080.0,0.37104409]
[1749904743674,0.79543611,105090.0,105080.0,0.37104409]
[1749904747645,0.79543611,105090.0,105080.0,0.38056037]
[1749904753401,0.05895847,105090.0,105080.0,0.45263888]
[1749904753607,4.762e-05,105090.0,105080.0,1.06273413]
[1749904753817,0.00956263,105090.0,105080.0,1.06273413]
[1749904754306,0.00956254,105090.0,105080.0,1.06273413]
[1749904754481,4.762e-05,105090.0,105080.0,1.06273413]
[1749904754699,4.762e-05,105090.0,105080.0,1.15897589]
[1749904756189,4.762e-05,105090.0,105080.0,0.60329602]
[1749904756388,4.762e-05,105090.0,105080.0,1.15897589]
[1749904761232,0.00956245,105090.0,105080.0,1.15897589]
[1749904761508,4.762e-05,105090.0,105080.0,1.15897589]
[1749904761927,0.00956245,105090.0,105080.0,1.15897589]
[1749904763832,4.762e-05,105090.0,105080.0,1.15897589]
[1749904764049,4.762e-05,105090.0,105080.0,1.09641348]
[1749904764349,4.762e-05,105090.0,105080.0,0.54073361]
[1749904764557,4.762e-05,105090.0,105080.0,1.09641348]
[1749904764739,4.762e-05,105090.0,105080.0,0.54073361]
[1749904764957,4.762e-05,105090.0,105080.0,0.61384166]
[1749904765159,4.762e-05,105090.0,105080.0,1.16952153]
[1749904767560,4.762e-05,105090.0,105080.0,1.09641348]
[1749904771329,0.57475742,105090.0,105080.0,0.38605361]
[1749904771527,0.58427243,105090.0,105080.0,0.54153361]
[1749904771728,0.57475733,105090.0,105080.0,0.54153361]
[1749904771953,0.58427262,105090.0,105080.0,0.54153361]
[1749904772321,0.58427253,105090.0,105080.0,0.54153361]
[1749904773118,0.03810804,105090.0,105080.0,0.54153361]
[1749904773557,0.59378791,105090.0,105080.0,0.54153361]
[1749904773757,0.60330338,105090.0,105080.0,0.54153361]
[1749904774284,0.59378791,105090.0,105080.0,0.54153361]
[1749904774653,0.03810804,105090.0,105080.0,0.54153361]
[1749904774862,0.59378791,105090.0,105080.0,0.54153361]
[1749904776083,0.60330338,105090.0,105080.0,0.54153361]
[1749904777702,0.60330338,105090.0,105080.0,0.54145361]
[1749904778316,0.59378791,105090.0,105080.0,0.54145361]
[1749904778924,0.03810804,105090.0,105080.0,0.54145361]
[1749904779173,0.59378791,105090.0,105080.0,0.54145361]
[1749904779580,0.60330338,105090.0,105080.0,0.54145361]
[1749904780635,0.59378791,105090.0,105080.0,0.54145361]
[1749904780854,0.60330338,105090.0,105080.0,0.54145361]
[1749904781783,0.59378791,105090.0,105080.0,0.54145361]
[1749904781899,0.59378791,105090.0,105080.0,0.38605361]
[1749904782102,0.7841017,105090.0,105080.0,0.35750558]
[1749904782309,0.7841017,105090.0,105080.0,0.31301831]
[1749904782512,0.7841017,105090.0,105080.0,0.32253477]
[1749904782977,0.76507149,105090.0,105080.0,0.30350176]
[1749904783180,0.76507149,105090.0,105080.0,0.14814176]
[1749904783405,0.76507149,105090.0,105080.0,0.30350176]
[1749904784302,0.76507149,105090.0,105080.0,0.50334948]
[1749904784509,0.76507149,105090.0,105080.0,0.51286594]
[1749904784782,0.75555611,105090.0,105080.0,0.20726]
[1749904785192,1.35063598,105090.0,105080.0,0.007]
[1749904785405,0.79495611,105090.0,105080.0,0.16248]
[1749904786041,0.79495611,105090.0,105080.0,0.007]
[1749904786254,1.69063598,105090.0,105080.0,0.007]
[1749904786478,6.88632129,105090.0,105080.0,0.007]
[1749904786684,6.9824705,105090.0,105080.0,0.007]
[1749904787114,7.01106447,105090.0,105080.0,0.007]
[1749904787337,7.01106447,105090.0,105080.0,0.004]
[1749904787794,7.01106436,105090.0,105080.0,0.004]
[1749904788209,0.21890059,105070.0,105060.0,0.41790937]
[1749904788424,0.81502046,105070.0,105060.0,0.41790937]
[1749904789510,0.80550363,105070.0,105060.0,0.222025]
[1749904789738,0.80550363,105070.0,105060.0,0.225025]
[1749904790243,0.79598653,105070.0,105060.0,0.225025]
[1749904792056,0.79598653,105070.0,105060.0,0.069505]
[1749904792272,0.79598653,105070.0,105060.0,0.024605]
[1749904793770,0.79598653,105070.0,105060.0,0.021605]
[1749904793986,0.79598653,105070.0,105060.0,0.023605]
[1749904795730,0.79598653,105070.0,105060.0,0.019605]
[1749904795946,0.79598653,105070.0,105060.0,0.021605]
[1749904799219,0.79598653,105070.0,105060.0,0.042705]
[1749904799429,0.79598653,105070.0,105060.0,0.066205]
[1749904800281,0.78310607,105070.0,105060.0,0.066205]
[1749904800492,0.79262344,105070.0,105060.0,0.066205]